fUST/lending_fUST_20240721
["ID","MTS","AMOUNT","RATE_DAILY","PERIOD"]
[332810329,1721542246390,-500.0,0.00013698,2]
[332810330,1721542246400,-763.95,0.00013698,2]
[332810331,1721542246409,-500.0,0.00013698,2]
[332810332,1721542246419,-2812.07,0.00013698,2]
[332810333,1721542246429,-500.0,0.00013698,2]
[332810334,1721542246439,-500.0,0.00013698,2]
[332810335,1721542246448,-169.411199,0.00013698,2]
[332810336,1721542246459,-500.0,0.00013698,2]
[332810337,1721542246469,-169.411199,0.00013698,2]
[332810338,1721542246478,-500.0,0.00013698,2]
[332810339,1721542246487,-500.0,0.00013698,2]
[332810340,1721542246496,-500.0,0.00013698,2]
[332810341,1721542246506,-500.0,0.00013698,2]
[332810342,1721542246515,-500.0,0.00013698,2]
[332810343,1721542246524,-501.5293362,0.00013698,2]
[332810344,1721542246535,-500.0,0.00013698,2]
[332810345,1721542246545,-169.411199,0.00013698,2]
[332810346,1721542246554,-500.0,0.00013698,2]
[332810347,1721542246565,-169.411199,0.00013698,2]
[332810348,1721542246575,-500.0,0.00013698,2]
[332810349,1721542246584,-500.0,0.00013698,2]
[332810350,1721542246593,-500.0,0.00013698,2]
[332810351,1721542246603,-500.0,0.00013698,2]
[332810352,1721542246613,-500.0,0.00013698,2]
[332810353,1721542246623,-1969.99,0.00013698,2]
[332810354,1721542246632,-7537.32,0.00013698,2]
[332810355,1721542246642,-3362.84,0.00013698,2]
[332810356,1721542246651,-857.4,0.00013698,2]
[332810357,1721542246661,-500.0,0.00013698,2]
[332810358,1721542246671,-1097.27,0.00013698,2]
[332810359,1721542246681,-988.93,0.00013698,2]
[332810360,1721542246690,-534.84,0.00013698,2]
[332810361,1721542246700,-500.0,0.00013698,2]
[332810362,1721542246710,-508.05205072,0.00013698,2]
[332810363,1721542246719,-500.0,0.00013698,2]
[332810364,1721542246729,-1566.52,0.00013698,2]
[332810365,1721542246739,-3059.9,0.00013698,2]
[332810366,1721542246749,-662.1,0.00013698,2]
[332810367,1721542246758,-989.42,0.00013698,2]
[332810368,1721542246768,-506.96922315,0.00013698,2]
[332810369,1721542246777,-500.0,0.00013698,2]
[332810370,1721542246791,-500.0,0.00013698,2]
[332810371,1721542246800,-1257.69,0.00013698,2]
[332810372,1721542246809,-500.0,0.00013698,2]
[332810373,1721542246819,-503.22469802,0.00013698,2]
[332810374,1721542246828,-2731.181064,0.00013698,2]
[332810375,1721542246837,-714.32,0.00013698,2]
[332810376,1721542246846,-2731.181064,0.00013698,2]
[332810377,1721542246860,-2731.181064,0.00013698,2]
[332810378,1721542246869,-500.0,0.00013698,2]
[332810379,1721542246878,-519.48229262,0.00013698,2]
[332810380,1721542246887,-508.74971259,0.00013698,2]
[332810381,1721542246898,-4683.45,0.00013698,2]
[332810382,1721542246907,-2731.181064,0.00013698,2]
[332810383,1721542246916,-500.0,0.00013698,2]
[332810384,1721542246926,-2731.181064,0.00013698,2]
[332810385,1721542246938,-2731.181064,0.00013698,2]
[332810386,1721542246949,-2464.77,0.00013698,2]
[332810387,1721542246958,-2130.222608,0.00013698,2]
[332810388,1721542246968,-2130.222608,0.00013698,2]
[332810389,1721542246977,-151.0,0.00013698,2]
[332810390,1721542246987,-151.0,0.00013698,2]
[332810391,1721542246996,-151.0,0.00013698,2]
[332810392,1721542247005,-151.0,0.00013698,2]
[332810393,1721542247014,-151.0,0.00013698,2]
[332810394,1721542247024,-4598.6715,0.00013698,2]
[332810395,1721542247036,-4598.6715,0.00013698,2]
[332810396,1721542247045,-151.0,0.00013698,2]
[332810397,1721542247055,-4598.6715,0.00013698,2]
[332810398,1721542247064,-151.0,0.00013698,2]
[332810399,1721542247073,-151.0,0.00013698,2]
[332810400,1721542247083,-500.0,0.00013698,2]
[332810401,1721542247092,-151.0,0.00013698,2]
[332810402,1721542247102,-151.0,0.00013698,2]
[332810403,1721542247111,-500.0,0.00013698,2]
[332810404,1721542247121,-500.0,0.00013698,2]
[332810405,1721542247131,-4564.62,0.00013698,2]
[332810406,1721542247140,-4598.6715,0.00013698,2]
[332810407,1721542247150,-500.0,0.00013698,2]
[332810408,1721542247159,-4598.6715,0.00013698,2]
[332810409,1721542247169,-4598.6715,0.00013698,2]
[332810410,1721542247179,-2130.222608,0.00013698,2]
[332810411,1721542247189,-2130.222608,0.00013698,2]
[332810412,1721542247198,-500.0,0.00013698,2]
[332810413,1721542247207,-500.0,0.00013698,2]
[332810414,1721542247217,-457.76178401,0.00013698,2]
[332810415,1721542247227,-500.0,0.00013698,2]
[332810416,1721542247237,-1048.19,0.00013698,2]
[332810417,1721542247247,-500.0,0.00013698,2]
[332810418,1721542247256,-530.13,0.00013698,2]
[332810419,1721542247266,-500.0,0.00013698,2]
[332810420,1721542247275,-509.6950994,0.00013698,2]
[332810421,1721542247286,-500.0,0.00013698,2]
[332810422,1721542247296,-1856.22,0.00013698,2]
[332810423,1721542247305,-501.43167891,0.00013698,2]
[332810424,1721542247315,-500.0,0.00013698,2]
[332810425,1721542247324,-500.0,0.00013698,2]
[332810426,1721542247335,-504.64998532,0.00013698,2]
[332810427,1721542247344,-803.94,0.00013698,2]
[332810428,1721542247353,-7251.392607,0.00013698,2]
[332810429,1721542247362,-7251.392607,0.00013698,2]
[332810430,1721542247372,-10309.05,0.00013698,2]
[332810431,1721542247381,-480.92618224,0.00013698,2]
[332810432,1721542247391,-500.0,0.00013698,2]
[332810433,1721542247401,-500.0,0.00013698,2]
[332810434,1721542247411,-500.0,0.00013698,2]
[332810435,1721542247420,-7251.392607,0.00013698,2]
[332810436,1721542247430,-500.0,0.00013698,2]
[332810437,1721542247439,-7251.392607,0.00013698,2]
[332810438,1721542247449,-500.0,0.00013698,2]
[332810439,1721542247458,-500.0,0.00013698,2]
[332810440,1721542247467,-586.78,0.00013698,2]
[332810441,1721542247477,-1583.89,0.00013698,2]
[332810442,1721542247487,-2536.89,0.00013698,2]
[332810443,1721542247496,-1194.74,0.00013698,2]
[332810444,1721542247506,-500.0,0.00013698,2]
[332810445,1721542247515,-500.0,0.00013698,2]
[332810446,1721542247525,-500.0,0.00013698,2]
[332810447,1721542247535,-8280.88,0.00013698,2]
[332810448,1721542247545,-503.64244037,0.00013698,2]
[332810449,1721542247555,-500.0,0.00013698,2]
[332810450,1721542247564,-577.04,0.00013698,2]
[332810451,1721542247573,-506.1306222,0.00013698,2]
[332810452,1721542247583,-577.43,0.00013698,2]
[332810453,1721542247592,-814.01,0.00013698,2]
[332810454,1721542247602,-796.16,0.00013698,2]
[332810455,1721542247611,-2093.45,0.00013698,2]
[332810456,1721542247621,-501.33225345,0.00013698,2]
[332810457,1721542247630,-500.0,0.00013698,2]
[332810458,1721542247639,-1229.65,0.00013698,2]
[332810459,1721542247649,-836.06,0.00013698,2]
[332810460,1721542247658,-500.0,0.00013698,2]
[332810461,1721542247667,-500.0,0.00013698,2]
[332810462,1721542247677,-500.0,0.00013698,2]
[332810463,1721542247686,-500.0,0.00013698,2]
[332810464,1721542247695,-500.0,0.00013698,2]
[332810465,1721542247704,-990.29,0.00013698,2]
[332810466,1721542247714,-500.0,0.00013698,2]
[332810467,1721542247724,-500.0,0.00013698,2]
[332810468,1721542247734,-500.0,0.00013698,2]
[332810469,1721542247743,-2774.36,0.00013698,2]
[332810470,1721542247754,-500.0,0.00013698,2]
[332810471,1721542247763,-500.0,0.00013698,2]
[332810472,1721542247773,-500.0,0.00013698,2]
[332810473,1721542247784,-500.0,0.00013698,2]
[332810474,1721542247794,-1014.75,0.00013698,2]
[332810475,1721542247803,-500.0,0.00013698,2]
[332810476,1721542247813,-500.0,0.00013698,2]
[332810477,1721542247823,-500.0,0.00013698,2]
[332810478,1721542247833,-500.0,0.00013698,2]
[332810479,1721542247843,-897.72,0.00013698,2]
[332810480,1721542247856,-1189.51,0.00013698,2]
[332810481,1721542247865,-1042.49,0.00013698,2]
[332810482,1721542247876,-1042.52,0.00013698,2]
[332810483,1721542247887,-500.0,0.00013698,2]
[332810484,1721542247899,-500.0,0.00013698,2]
[332810485,1721542247910,-551.81,0.00013698,2]
[332810486,1721542247920,-500.42433486,0.00013698,2]
[332810487,1721542247931,-500.0,0.00013698,2]
[332810488,1721542247942,-500.0,0.00013698,2]
[332810489,1721542247952,-870.11,0.00013698,2]
[332810490,1721542247962,-500.0,0.00013698,2]
[332810491,1721542247971,-655.76,0.00013698,2]
[332810492,1721542247981,-500.0,0.00013698,2]
[332810493,1721542247991,-501.12268419,0.00013698,2]
[332810494,1721542248000,-500.0,0.00013698,2]
[332810495,1721542248010,-893.44,0.00013698,2]
[332810496,1721542248019,-4616.065283,0.00013698,2]
[332810497,1721542248029,-11744.73,0.00013698,2]
[332810498,1721542248040,-4616.065283,0.00013698,2]
[332810499,1721542248049,-4616.065283,0.00013698,2]
[332810500,1721542248059,-1619.46,0.00013698,2]
[332810501,1721542248068,-1619.46,0.00013698,2]
[332810502,1721542248079,-1619.46,0.00013698,2]
[332810503,1721542248088,-500.0,0.00013698,2]
[332810504,1721542248098,-1619.46,0.00013698,2]
[332810505,1721542248108,-1619.46,0.00013698,2]
[332810506,1721542248118,-1619.46,0.00013698,2]
[332810507,1721542248128,-1619.46,0.00013698,2]
[332810508,1721542248138,-1619.46,0.00013698,2]
[332810509,1721542248147,-1619.46,0.00013698,2]
[332810510,1721542248157,-1619.46,0.00013698,2]
[332810511,1721542248167,-500.0,0.00013698,2]
[332810512,1721542248176,-1619.46,0.00013698,2]
[332810513,1721542248187,-1619.46,0.00013698,2]
[332810514,1721542248196,-1619.46,0.00013698,2]
[332810515,1721542248205,-1619.46,0.00013698,2]
[332810516,1721542248216,-500.0,0.00013698,2]
[332810517,1721542248225,-1619.46,0.00013698,2]
[332810518,1721542248235,-1619.46,0.00013698,2]
[332810519,1721542248244,-1619.46,0.00013698,2]
[332810520,1721542248254,-674.84,0.00013698,2]
[332810521,1721542248263,-500.0,0.00013698,2]
[332810522,1721542248273,-500.0,0.00013698,2]
[332810523,1721542248282,-4616.065283,0.00013698,2]
[332810524,1721542248292,-500.0,0.00013698,2]
[332810525,1721542248304,-4616.065283,0.00013698,2]
[332810526,1721542248313,-4616.065283,0.00013698,2]
[332810527,1721542248323,-2216.47,0.00013698,2]
[332810528,1721542248333,-151.0,0.00013698,2]
[332810529,1721542248343,-2076.85,0.00013698,2]
[332810530,1721542248353,-151.0,0.00013698,2]
[332810531,1721542248363,-151.0,0.00013698,2]
[332810532,1721542248373,-500.0,0.00013698,2]
[332810533,1721542248383,-649.58,0.00013698,2]
[332810534,1721542248393,-185.12499059,0.00013698,2]
[332810535,1721542248403,-500.0,0.00013698,2]
[332810536,1721542248413,-500.0,0.00013698,2]
[332810537,1721542248423,-500.0,0.00013698,2]
[332810538,1721542248433,-356.81585656,0.00013698,2]
[332810539,1721542248941,-143.18414344,0.00013698,2]
[332810540,1721542248954,-500.0,0.00013698,2]
[332810541,1721542248965,-617.30917,0.00013698,2]
[332810542,1721542248975,-500.0,0.00013698,2]
[332810543,1721542248984,-617.30917,0.00013698,2]
[332810544,1721542248995,-1219.61,0.00013698,2]
[332810545,1721542249005,-617.30917,0.00013698,2]
[332810546,1721542249016,-702.86,0.00013698,2]
[332810547,1721542249027,-1711.15,0.00013698,2]
[332810548,1721542249040,-343.59494713,0.00013698,2]
[332810549,1721542249389,-2348.33505287,0.00013698,2]
[332810550,1721542249401,-617.30917,0.00013698,2]
[332810551,1721542249411,-617.30917,0.00013698,2]
[332810552,1721542249422,-3923.85,0.00013698,2]
[332810553,1721542249432,-513.64982428,0.00013698,2]
[332810554,1721542249441,-617.30917,0.00013698,2]
[332810555,1721542249451,-2437.35,0.00013698,2]
[332810556,1721542249464,-442.78889158,0.00013698,2]
[332810557,1721542249491,-2249.33124442,0.00013698,2]
[332810558,1721542249501,-2692.120136,0.00013698,2]
[332810559,1721542249512,-2692.120136,0.00013698,2]
[332810560,1721542249523,-2692.120136,0.00013698,2]
[332810561,1721542249535,-2692.120136,0.00013698,2]
[332810562,1721542249545,-2349.57,0.00013698,2]
[332810563,1721542249555,-500.0,0.00013698,2]
[332810564,1721542249565,-2692.120136,0.00013698,2]
[332810565,1721542249576,-500.0,0.00013698,2]
[332810566,1721542249765,-1125.95,0.00013698,2]
[332810567,1721542249776,-500.0,0.00013698,2]
[332810568,1721542249787,-500.0,0.00013698,2]
[332810569,1721542249797,-500.0,0.00013698,2]
[332810570,1721542249806,-500.0,0.00013698,2]
[332810571,1721542249816,-500.0,0.00013698,2]
[332810572,1721542249826,-1029.19,0.00013698,2]
[332810573,1721542249835,-500.0,0.00013698,2]
[332810574,1721542249846,-6658.28584524,0.00013698,2]
[332810616,1721543253140,-320.04430861,9.999e-05,2]
[332810617,1721543253163,-154.74467129,9.999e-05,2]
[332810618,1721543253185,-154.74467129,9.999e-05,2]
[332810619,1721543253209,-300.0,0.00012407,2]
[332810620,1721543253234,-19875.96469657,0.00012408,2]
[332810678,1721543438551,-154.74467129,9.999e-05,2]
[332810679,1721543438561,-291.0,9.999e-05,2]
[332810680,1721543438570,-12929.30552394,0.0001,2]
[332810681,1721543438580,-218.09499306,0.00012408,2]
[332810682,1721543438589,-426.55704659,0.00012408,2]
[332810683,1721543438599,-5024.03530343,0.00012408,2]
[332810684,1721543438610,-620.38471051,0.00013261,2]
[332810685,1721543438619,-1117.16026236,0.00013598,2]
[332810686,1721543438629,-367.35615468,0.00013614,2]
[332810687,1721543438639,-5304.19710114,0.00013616,2]
[332810688,1721543438648,-155.0,0.0001368,2]
[332810689,1721543438657,-13376.40563298,0.00013688,2]
[332810690,1721543438670,-3980.58869069,0.00013688,2]
[332810691,1721543438688,-165199.00229933,0.00013688,2]
[332810692,1721543438698,-500.6716079,0.00013698,2]
[332810693,1721543438708,-509.5921109,0.00013698,2]
[332810694,1721543438717,-500.0,0.00013698,2]
[332810695,1721543438731,-502.75342232,0.00013698,2]
[332810696,1721543438740,-505.38131075,0.00013698,2]
[332810697,1721543438750,-515.62998071,0.00013698,2]
[332810698,1721543438759,-500.0,0.00013698,2]
[332810699,1721543438768,-500.0,0.00013698,2]
[332810700,1721543438778,-500.0,0.00013698,2]
[332810701,1721543438788,-500.0,0.00013698,2]
[332810702,1721543438798,-169.1445557,0.00013698,2]
[332810703,1721543438808,-869.65,0.00013698,2]
[332810704,1721543438817,-500.0,0.00013698,2]
[332810705,1721543438827,-500.0,0.00013698,2]
[332810706,1721543438836,-500.0,0.00013698,2]
[332810707,1721543438846,-548.5574355,0.00013698,2]
[332810708,1721543438855,-500.0,0.00013698,2]
[332810709,1721543438864,-500.0,0.00013698,2]
[332810710,1721543438874,-501.2016491,0.00013698,2]
[332810711,1721543438884,-500.0,0.00013698,2]
[332810712,1721543438893,-549.44249612,0.00013698,2]
[332810713,1721543438902,-735.22,0.00013698,2]
[332810714,1721543438912,-500.0,0.00013698,2]
[332810715,1721543438922,-500.0,0.00013698,2]
[332810716,1721543438933,-949.06,0.00013698,2]
[332810717,1721543438942,-573.92873852,0.00013698,2]
[332810718,1721543438951,-518.81684462,0.00013698,2]
[332810719,1721543438961,-500.0,0.00013698,2]
[332810720,1721543438970,-500.0,0.00013698,2]
[332810721,1721543438981,-500.0,0.00013698,2]
[332810722,1721543438991,-500.0,0.00013698,2]
[332810723,1721543439002,-861.29,0.00013698,2]
[332810724,1721543439012,-500.0,0.00013698,2]
[332810725,1721543439022,-500.0,0.00013698,2]
[332810726,1721543439032,-500.0,0.00013698,2]
[332810727,1721543439042,-500.0,0.00013698,2]
[332810728,1721543439052,-500.0,0.00013698,2]
[332810729,1721543439061,-500.0,0.00013698,2]
[332810730,1721543439071,-500.0,0.00013698,2]
[332810731,1721543439081,-504.47672826,0.00013698,2]
[332810732,1721543439090,-501.44774616,0.00013698,2]
[332810733,1721543439100,-500.0,0.00013698,2]
[332810734,1721543439109,-500.0,0.00013698,2]
[332810735,1721543439120,-500.0,0.00013698,2]
[332810736,1721543439130,-500.0,0.00013698,2]
[332810737,1721543439140,-500.0,0.00013698,2]
[332810738,1721543439149,-622.97,0.00013698,2]
[332810739,1721543439158,-503.48450541,0.00013698,2]
[332810740,1721543439169,-500.0,0.00013698,2]
[332810741,1721543439179,-547.59,0.00013698,2]
[332810742,1721543439188,-547.13910122,0.00013698,2]
[332810743,1721543439200,-509.85901008,0.00013698,2]
[332810744,1721543439209,-500.0,0.00013698,2]
[332810745,1721543439220,-500.0,0.00013698,2]
[332810746,1721543439230,-500.0,0.00013698,2]
[332810747,1721543439240,-500.0,0.00013698,2]
[332810748,1721543439249,-504.08045759,0.00013698,2]
[332810749,1721543439258,-500.0,0.00013698,2]
[332810750,1721543439270,-500.0,0.00013698,2]
[332810751,1721543439281,-500.0,0.00013698,2]
[332810752,1721543439292,-741.1,0.00013698,2]
[332810753,1721543439303,-500.0,0.00013698,2]
[332810754,1721543439313,-503.29603639,0.00013698,2]
[332810755,1721543439324,-915.58,0.00013698,2]
[332810756,1721543439336,-523.66,0.00013698,2]
[332810757,1721543439350,-500.0,0.00013698,2]
[332810758,1721543439359,-500.0,0.00013698,2]
[332810759,1721543439369,-500.0,0.00013698,2]
[332810760,1721543439378,-500.0,0.00013698,2]
[332810761,1721543439387,-1191.93,0.00013698,2]
[332810762,1721543439396,-500.0,0.00013698,2]
[332810763,1721543439406,-500.0,0.00013698,2]
[332810764,1721543439416,-500.0,0.00013698,2]
[332810765,1721543439425,-500.0,0.00013698,2]
[332810766,1721543439435,-504.07455151,0.00013698,2]
[332810767,1721543439445,-500.0,0.00013698,2]
[332810768,1721543439454,-500.0,0.00013698,2]
[332810769,1721543439463,-500.0,0.00013698,2]
[332810770,1721543439474,-500.0,0.00013698,2]
[332810771,1721543439483,-500.0,0.00013698,2]
[332810772,1721543439492,-500.0,0.00013698,2]
[332810773,1721543439501,-500.0,0.00013698,2]
[332810774,1721543439511,-500.0,0.00013698,2]
[332810775,1721543439520,-500.0,0.00013698,2]
[332810776,1721543439530,-500.0,0.00013698,2]
[332810777,1721543439539,-500.0,0.00013698,2]
[332810778,1721543439549,-549.83,0.00013698,2]
[332810779,1721543439558,-500.0,0.00013698,2]
[332810780,1721543439567,-500.0,0.00013698,2]
[332810781,1721543439577,-500.0,0.00013698,2]
[332810782,1721543439586,-500.0,0.00013698,2]
[332810783,1721543439595,-500.0,0.00013698,2]
[332810784,1721543439604,-500.0,0.00013698,2]
[332810785,1721543439613,-500.0,0.00013698,2]
[332810786,1721543439622,-244.92214874,0.00013698,2]
[332810787,1721543439632,-500.0,0.00013698,2]
[332810788,1721543439642,-500.0,0.00013698,2]
[332810789,1721543439651,-500.0,0.00013698,2]
[332810790,1721543439660,-500.0,0.00013698,2]
[332810791,1721543439671,-500.0,0.00013698,2]
[332810792,1721543439681,-500.0,0.00013698,2]
[332810793,1721543439690,-500.0,0.00013698,2]
[332810794,1721543439700,-500.0,0.00013698,2]
[332810796,1721543439709,-500.0,0.00013698,2]
[332810798,1721543439718,-500.0,0.00013698,2]
[332810799,1721543439731,-500.0,0.00013698,2]
[332810800,1721543439739,-508.56279323,0.00013698,2]
[332810802,1721543439748,-503.73580191,0.00013698,2]
[332810803,1721543439758,-500.0,0.00013698,2]
[332810805,1721543439768,-500.0,0.00013698,2]
[332810806,1721543439777,-500.0,0.00013698,2]
[332810807,1721543439786,-500.0,0.00013698,2]
[332810808,1721543439795,-500.0,0.00013698,2]
[332810809,1721543439804,-500.0,0.00013698,2]
[332810810,1721543439813,-500.0,0.00013698,2]
[332810811,1721543439822,-500.0,0.00013698,2]
[332810812,1721543439831,-500.0,0.00013698,2]
[332810813,1721543439840,-500.0,0.00013698,2]
[332810814,1721543439851,-715.2,0.00013698,2]
[332810815,1721543439861,-500.0,0.00013698,2]
[332810816,1721543439870,-362.07545012,0.00013698,2]
[332810817,1721543439879,-361.5040045,0.00013698,2]
[332810818,1721543439889,-500.0,0.00013698,2]
[332810819,1721543439898,-500.0,0.00013698,2]
[332810820,1721543439907,-505.92769148,0.00013698,2]
[332810822,1721543439917,-500.0,0.00013698,2]
[332810824,1721543439926,-500.0,0.00013698,2]
[332810825,1721543439936,-500.0,0.00013698,2]
[332810827,1721543439945,-500.0,0.00013698,2]
[332810828,1721543439954,-500.0,0.00013698,2]
[332810829,1721543439964,-500.0,0.00013698,2]
[332810830,1721543439973,-500.0,0.00013698,2]
[332810831,1721543439982,-500.0,0.00013698,2]
[332810832,1721543439991,-151.355207,0.00013698,2]
[332810833,1721543440000,-500.0,0.00013698,2]
[332810834,1721543440009,-500.0,0.00013698,2]
[332810835,1721543440019,-500.0,0.00013698,2]
[332810836,1721543440028,-500.0,0.00013698,2]
[332810837,1721543440037,-500.0,0.00013698,2]
[332810838,1721543440047,-500.0,0.00013698,2]
[332810840,1721543440055,-500.0,0.00013698,2]
[332810842,1721543440065,-514.31104745,0.00013698,2]
[332810844,1721543440074,-500.0,0.00013698,2]
[332810845,1721543440084,-500.0,0.00013698,2]
[332810846,1721543440093,-1472.91,0.00013698,2]
[332810847,1721543440103,-502.47704321,0.00013698,2]
[332810848,1721543440112,-500.0,0.00013698,2]
[332810849,1721543440121,-500.0,0.00013698,2]
[332810850,1721543440131,-584.73601289,0.00013698,2]
[332810851,1721543440140,-500.0,0.00013698,2]
[332810852,1721543440149,-1031.06,0.00013698,2]
[332810853,1721543440158,-512.64,0.00013698,2]
[332810854,1721543440170,-500.0,0.00013698,2]
[332810855,1721543440180,-506.56216054,0.00013698,2]
[332810856,1721543440190,-777.01,0.00013698,2]
[332810857,1721543440201,-500.0,0.00013698,2]
[332810858,1721543440212,-500.0,0.00013698,2]
[332810859,1721543440223,-2752.59,0.00013698,2]
[332810860,1721543440232,-500.0,0.00013698,2]
[332810862,1721543440244,-500.0,0.00013698,2]
[332810864,1721543440255,-1733.66,0.00013698,2]
[332810865,1721543440266,-151.0,0.00013698,2]
[332810866,1721543440275,-505.39149835,0.00013698,2]
[332810867,1721543440284,-502.54817134,0.00013698,2]
[332810868,1721543440293,-500.0,0.00013698,2]
[332810869,1721543440302,-515.53,0.00013698,2]
[332810871,1721543440312,-500.0,0.00013698,2]
[332810872,1721543440323,-151.0,0.00013698,2]
[332810873,1721543440332,-511.49784745,0.00013698,2]
[332810874,1721543440343,-1816.29,0.00013698,2]
[332810875,1721543440353,-556.54,0.00013698,2]
[332810876,1721543440362,-521.58,0.00013698,2]
[332810877,1721543440371,-500.0,0.00013698,2]
[332810878,1721543440381,-199.22803893,0.00013698,2]
[332810879,1721543440390,-500.0,0.00013698,2]
[332810880,1721543440399,-500.0,0.00013698,2]
[332810881,1721543440409,-1146.38,0.00013698,2]
[332810882,1721543440418,-621.17,0.00013698,2]
[332810883,1721543440428,-500.0,0.00013698,2]
[332810884,1721543440438,-605.69,0.00013698,2]
[332810885,1721543440448,-500.0,0.00013698,2]
[332810886,1721543440457,-607.86,0.00013698,2]
[332810887,1721543440467,-500.0,0.00013698,2]
[332810888,1721543440478,-171.40599026,0.00013698,2]
[332810889,1721543440488,-342.38173091,0.00013698,2]
[332810890,1721543440497,-553.17107908,0.00013698,2]
[332810891,1721543440507,-151.0,0.00013698,2]
[332810892,1721543440517,-2331.2,0.00013698,2]
[332810893,1721543440527,-500.0,0.00013698,2]
[332810894,1721543440538,-2056.1,0.00013698,2]
[332810895,1721543440549,-151.0,0.00013698,2]
[332810896,1721543440559,-500.0,0.00013698,2]
[332810897,1721543440571,-500.0,0.00013698,2]
[332810898,1721543440582,-500.0,0.00013698,2]
[332810899,1721543440593,-344.22504912,0.00013698,2]
[332810900,1721543440603,-500.0,0.00013698,2]
[332810901,1721543440612,-500.0,0.00013698,2]
[332810902,1721543440623,-500.0,0.00013698,2]
[332810903,1721543440633,-500.0,0.00013698,2]
[332810904,1721543440642,-500.0,0.00013698,2]
[332810905,1721543440651,-500.0,0.00013698,2]
[332810906,1721543440660,-500.0,0.00013698,2]
[332810907,1721543440671,-2706.19,0.00013698,2]
[332810908,1721543440680,-500.0,0.00013698,2]
[332810909,1721543440690,-500.0,0.00013698,2]
[332810910,1721543440702,-500.0,0.00013698,2]
[332810911,1721543440714,-500.0,0.00013698,2]
[332810912,1721543440725,-500.0,0.00013698,2]
[332810913,1721543440735,-500.0,0.00013698,2]
[332810914,1721543440746,-500.0,0.00013698,2]
[332810915,1721543440757,-500.0,0.00013698,2]
[332810916,1721543440768,-500.0,0.00013698,2]
[332810917,1721543440778,-500.0,0.00013698,2]
[332810918,1721543440789,-500.0,0.00013698,2]
[332810919,1721543440798,-966.67,0.00013698,2]
[332810920,1721543440809,-759.39,0.00013698,2]
[332810921,1721543440818,-758.96,0.00013698,2]
[332810922,1721543440829,-500.0,0.00013698,2]
[332810923,1721543440839,-500.0,0.00013698,2]
[332810924,1721543440850,-862.29,0.00013698,2]
[332810925,1721543440860,-522.52174364,0.00013698,2]
[332810926,1721543440870,-564.09,0.00013698,2]
[332810927,1721543440880,-500.0,0.00013698,2]
[332810928,1721543440891,-500.0,0.00013698,2]
[332810929,1721543440900,-500.0,0.00013698,2]
[332810930,1721543440910,-500.0,0.00013698,2]
[332810931,1721543440920,-500.0,0.00013698,2]
[332810932,1721543440931,-500.0,0.00013698,2]
[332810933,1721543440943,-500.0,0.00013698,2]
[332810934,1721543440954,-473.39537571,0.00013698,2]
[332810935,1721543440963,-370.00262806,0.00013698,2]
[332810936,1721543440973,-500.0,0.00013698,2]
[332810937,1721543440984,-500.0,0.00013698,2]
[332810938,1721543440994,-500.0,0.00013698,2]
[332810939,1721543441004,-500.0,0.00013698,2]